bitfinex-derivatives/quotes_SOLF0:USTF0_20260315
["timestamp","ask_amount","ask_price","bid_price","bid_amount"]
[1773585385026,10.268,87.637,87.592,9.00666766]
[1773585385830,10.267,87.645,87.594,9.00852563]
[1773585390829,10.267,87.645,87.59,3.12431885]
[1773585390830,10.267,87.645,87.6,9.003735]
[1773585391430,3.12431885,87.64,87.587,9.00512381]
[1773585393037,3.12431885,87.65,87.591,9.00552967]
[1773585393530,10.268,87.638,87.591,9.00552967]
[1773585394236,3.12431885,87.67,87.611,9.02036003]
[1773585394633,3.12431885,87.68,87.611,9.02036003]
[1773585395033,10.264,87.664,87.612,9.02036003]
[1773585396634,10.264,87.664,87.615,8.99641901]
[1773585399539,3.12431885,87.68,87.63,3.12431885]
[1773585399747,3.12431885,87.68,87.631,8.99286335]
[1773585400139,3.12431885,87.68,87.632,8.99286335]
[1773585400442,3.12431885,87.67,87.611,8.99126117]
[1773585401635,13.38831885,87.67,87.615,8.99217675]
[1773585402641,3.12431885,87.66,87.615,8.99217675]
[1773585403547,10.265,87.659,87.615,8.99217675]
[1773585406844,3.12431885,87.66,87.615,8.99217675]
[1773585407048,10.264,87.668,87.621,8.99115623]
[1773585408151,35.92,87.696,87.601,8.98675881]
[1773585408152,3.12431885,87.66,87.601,8.98675881]
[1773585408761,3.12431885,87.67,87.611,8.98675881]
[1773585409657,10.265,87.656,87.611,8.98675881]
[1773585419161,3.12431885,87.67,87.611,8.98675881]
[1773585419162,10.265,87.664,87.611,8.98675881]
[1773585419463,10.265,87.664,87.615,8.950949]
[1773585429569,10.265,87.664,87.617,8.93130534]
[1773585437179,8.75762201,87.663,87.617,8.93130534]
[1773585437577,10.265,87.664,87.617,8.93130534]
[1773585438081,8.75762201,87.663,87.617,8.93130534]
[1773585438279,8.75762201,87.662,87.617,8.93130534]
[1773585438480,8.75762201,87.663,87.617,8.93130534]
[1773585438680,8.75762201,87.662,87.617,8.93130534]
[1773585438882,10.265,87.662,87.617,8.93130534]
[1773585439080,8.75762201,87.661,87.617,8.93130534]
[1773585439281,8.75762201,87.66,87.617,8.93130534]
[1773585439482,10.265,87.662,87.617,8.93130534]
[1773585439684,8.76510402,87.661,87.617,8.93130534]
[1773585439873,8.76510402,87.66,87.617,8.93130534]
[1773585440076,10.265,87.662,87.617,8.93130534]
[1773585440278,8.76540393,87.661,87.617,8.93130534]
[1773585440481,8.76540393,87.66,87.617,8.93130534]
[1773585440684,10.265,87.662,87.617,8.93130534]
[1773585440886,8.76540393,87.661,87.617,8.93130534]
[1773585441089,8.76540393,87.66,87.617,8.93130534]
[1773585441282,10.265,87.662,87.617,8.93130534]
[1773585441483,8.76572386,87.661,87.617,8.93130534]
[1773585441682,8.76572386,87.66,87.617,8.93130534]
[1773585441885,10.265,87.662,87.617,8.93130534]
[1773585442086,10.265,87.659,87.617,8.93130534]
[1773585446388,10.265,87.659,87.621,8.92688475]
[1773585447192,8.77043184,87.658,87.621,8.92688475]
[1773585447488,10.265,87.659,87.621,8.92688475]
[1773585447689,8.77043184,87.658,87.621,8.92688475]
[1773585447887,10.265,87.659,87.621,8.92688475]
[1773585448088,8.77043184,87.658,87.621,8.92688475]
[1773585448287,10.265,87.659,87.621,8.92688475]
[1773585448484,8.77092388,87.658,87.621,8.92688475]
[1773585448687,10.265,87.659,87.621,8.92688475]
[1773585448886,8.77092388,87.658,87.621,8.92688475]
[1773585449087,10.265,87.659,87.621,8.92688475]
[1773585449287,8.77150511,87.658,87.621,8.92688475]
[1773585449489,10.265,87.659,87.621,8.92688475]
[1773585449685,8.77150511,87.658,87.621,8.92688475]
[1773585449885,10.265,87.659,87.621,8.92688475]
[1773585450085,8.77150511,87.658,87.621,8.92688475]
[1773585450296,8.77150511,87.657,87.621,8.92688475]
[1773585450586,10.265,87.659,87.621,8.92688475]
[1773585450785,8.77216802,87.658,87.621,8.92688475]
[1773585450990,8.77216802,87.657,87.621,8.92688475]
[1773585451290,10.265,87.659,87.621,8.92688475]
[1773585451490,8.77293563,87.658,87.621,8.92688475]
[1773585451690,8.77293563,87.657,87.621,8.92688475]
[1773585451890,10.265,87.659,87.621,8.92688475]
[1773585452098,8.77293563,87.658,87.621,8.92688475]
[1773585452291,8.77293563,87.657,87.621,8.92688475]
[1773585452496,8.77293563,87.656,87.621,8.92688475]
[1773585452695,8.77293563,87.655,87.621,8.92688475]
[1773585452897,10.265,87.659,87.621,8.92688475]
[1773585453096,8.77504661,87.658,87.621,8.92688475]
[1773585453290,8.77504661,87.657,87.621,8.92688475]
[1773585453595,8.77504661,87.656,87.621,8.92688475]
[1773585453794,8.77504661,87.655,87.621,8.92688475]
[1773585453998,8.77504661,87.654,87.621,8.92688475]
[1773585454196,10.265,87.659,87.621,8.92688475]
[1773585454496,8.77770373,87.658,87.621,8.92688475]
[1773585454696,8.77770373,87.657,87.621,8.92688475]
[1773585454889,8.77770373,87.656,87.621,8.92688475]
[1773585455091,8.77770373,87.655,87.621,8.92688475]
[1773585455391,8.77770373,87.654,87.621,8.92688475]
[1773585455591,10.265,87.659,87.621,8.92688475]
[1773585455792,8.77770505,87.658,87.621,8.92688475]
[1773585455999,8.77770505,87.657,87.621,8.92688475]
[1773585456198,8.77770505,87.656,87.621,8.92688475]
[1773585456402,8.77770505,87.655,87.621,8.92688475]
[1773585456595,8.77770505,87.654,87.621,8.92688475]
[1773585456794,209.983029,88.174,87.6,3.12319634]
[1773585456795,8.77770505,87.653,87.601,8.9425062]
[1773585456990,8.77770505,87.652,87.601,8.9425062]
[1773585457196,8.77770505,87.651,87.601,8.9425062]
[1773585457396,8.77770505,87.65,87.601,8.9425062]
[1773585457594,10.267,87.644,87.601,8.9425062]
[1773585458497,10.66659965,87.683,87.631,4.5405238]
[1773585458698,10.66659965,87.686,87.631,4.5405238]
[1773585458898,3.12319634,87.68,87.631,4.5405238]
[1773585459101,10.264,87.665,87.631,4.5405238]
[1773585462598,10.264,87.665,87.621,4.57633843]
[1773585462799,10.263,87.673,87.621,4.57633843]
[1773585465101,10.263,87.673,87.63,3.12319634]
[1773585465404,10.264,87.666,87.621,4.57633843]
[1773585470408,10.265,87.661,87.621,4.57633843]
[1773585478515,10.263,87.677,87.631,4.57865929]
[1773585478714,8.71953358,87.676,87.631,4.57865929]
[1773585478906,8.71953358,87.675,87.631,4.57865929]
[1773585479215,8.71953358,87.674,87.631,4.57865929]
[1773585479415,8.71953358,87.673,87.631,4.57865929]
[1773585479714,10.263,87.673,87.631,4.57865929]
[1773585480713,8.71953358,87.689,87.651,4.58594185]
[1773585480911,13.78979599,87.71,87.651,4.58594185]
[1773585480912,35.92,87.707,87.651,4.58594185]
[1773585481112,8.71953358,87.706,87.651,4.58594185]
[1773585481314,35.92,87.707,87.661,4.58594185]
[1773585482020,44.63953358,87.707,87.661,4.58594185]
[1773585482213,3.12319634,87.7,87.64,3.12319634]
[1773585482414,3.12319634,87.7,87.641,4.57253417]
[1773585482618,3.12319634,87.7,87.651,4.57253417]
[1773585482813,35.92,87.707,87.651,4.57253417]
[1773585483517,10.262,87.688,87.651,4.57253417]
[1773585484915,10.261,87.697,87.651,4.57253417]
[1773585485222,10.261,87.697,87.661,4.55658864]
[1773585488122,35.92,87.707,87.671,4.55696218]
[1773585488420,10.259,87.709,87.671,4.55696218]
[1773585488622,10.259,87.709,87.602,28.21435229]
[1773585488623,3.12319634,87.73,87.681,4.52369888]
[1773585488913,35.92,87.733,87.681,4.52369888]
[1773585489520,10.257,87.728,87.681,4.52369888]
[1773585491022,10.258,87.719,87.671,4.52155717]
[1773585497117,3.12319634,87.73,87.671,4.52155717]
[1773585497322,3.12319634,87.72,87.66,7.66404737]
[1773585497626,3.12319634,87.72,87.661,4.54085103]
[1773585498522,10.26,87.707,87.661,4.54085103]
[1773585506333,3.12319634,87.7,87.661,4.54085103]
[1773585506736,10.26,87.699,87.649,4.56704784]
[1773585510233,3.12090048,87.7,87.654,4.56854456]
[1773585511533,3.12090048,87.7,87.657,10.265]
[1773585511732,3.12090048,87.7,87.657,14.83330675]
[1773585511933,3.12090048,87.7,87.658,4.56830675]
[1773585513635,10.259,87.707,87.658,4.56830675]
[1773585514935,3.12090048,87.7,87.658,4.56830675]
[1773585515132,10.259,87.707,87.658,4.56830675]
[1773585519835,10.26,87.7,87.658,4.56830675]
[1773585520940,13.38090048,87.7,87.658,4.56830675]
[1773585521639,3.12090048,87.69,87.646,4.56192592]
[1773585522537,13.38090048,87.7,87.646,4.56192592]
[1773585523544,10.261,87.693,87.646,4.56192592]
[1773585523943,3.12090048,87.69,87.646,4.56192592]
[1773585525450,10.261,87.693,87.646,4.56192592]
[1773585530759,10.262,87.686,87.646,4.56192592]
[1773585530952,10.262,87.686,87.63,3.12090048]
[1773585531152,10.262,87.686,87.636,4.57076231]
[1773585531757,10.262,87.686,87.641,4.57070519]
[1773585532155,10.263,87.677,87.641,4.57070519]
[1773585532357,3.12090048,87.69,87.641,4.57070519]
[1773585533656,10.262,87.685,87.641,4.57070519]
[1773585533950,10.262,87.685,87.613,35.92]
[1773585533951,3.12090048,87.72,87.661,4.56789256]
[1773585534153,3.12090048,87.71,87.651,4.56789256]
[1773585534351,10.26,87.699,87.651,4.56789256]
[1773585535249,10.261,87.692,87.651,4.56789256]
[1773585538662,3.12090048,87.69,87.64,4.61821169]
[1773585539557,10.262,87.687,87.64,4.61821169]
[1773585542257,8.66315962,87.698,87.651,4.61282766]
[1773585542258,10.261,87.698,87.651,4.61282766]
[1773585550271,18.92415962,87.698,87.651,4.61282766]
[1773585550472,10.261,87.698,87.651,4.61282766]
[1773585550671,18.92415962,87.698,87.651,4.61282766]
[1773585550870,10.261,87.698,87.651,4.61282766]
[1773585551066,10.262,87.689,87.651,4.61282766]
[1773585551371,3.12090048,87.68,87.641,4.62709019]
[1773585554774,10.263,87.677,87.641,4.62709019]
[1773585554976,3.12090048,87.67,87.622,4.62060217]
[1773585555371,3.12090048,87.66,87.622,4.62060217]
[1773585556673,10.264,87.669,87.622,4.62060217]
[1773585556875,3.12090048,87.67,87.622,4.62060217]
[1773585557080,35.92,87.673,87.622,4.62060217]
[1773585558577,35.92,87.673,87.625,4.62291713]
[1773585559683,35.92,87.673,87.627,4.62290974]
[1773585560386,10.263,87.679,87.627,4.62290974]
[1773585560583,10.263,87.679,87.63,4.6227153]
[1773585563684,10.263,87.679,87.631,10.268]
[1773585563889,10.263,87.679,87.632,4.6132164]
[1773585564786,3.12090048,87.68,87.638,4.58593968]
[1773585564990,35.92,87.693,87.641,4.58593968]
[1773585565888,3.12090048,87.69,87.641,4.58593968]
[1773585566591,3.12090048,87.69,87.647,4.58548698]
[1773585566786,3.12125437,87.69,87.647,4.58548698]
[1773585566987,10.261,87.698,87.647,4.58548698]
[1773585567589,10.261,87.69,87.647,4.58548698]
[1773585572088,10.261,87.698,87.649,10.266]
[1773585572292,10.261,87.698,87.65,4.58495047]
[1773585573194,10.261,87.691,87.65,4.58495047]
[1773585576498,3.12125437,87.7,87.654,4.57457574]
[1773585577398,13.38225437,87.69,87.645,10.267]
[1773585577895,35.92,87.704,87.621,4.57722231]
[1773585577896,3.12125437,87.68,87.621,4.57722231]
[1773585578587,3.12125437,87.65,87.622,4.57552816]
[1773585578787,3.12125437,87.65,87.596,4.57552816]
[1773585579591,3.12125437,87.65,87.613,14.84280806]
[1773585579794,3.12125437,87.65,87.614,4.57280806]
[1773585580997,3.12125437,87.66,87.614,4.57280806]
[1773585581602,10.265,87.657,87.614,4.57280806]
[1773585585404,3.12125437,87.66,87.614,4.57280806]
[1773585587205,3.12125437,87.66,87.617,4.57457222]
[1773585589406,3.12125437,87.64,87.59,3.12125437]
[1773585589606,3.12125437,87.64,87.588,35.92]
[1773585589607,3.12125437,87.64,87.591,4.57217648]
[1773585590514,3.12125437,87.64,87.596,10.272]
[1773585591213,3.12125437,87.64,87.597,4.57206341]
[1773585593106,3.12125437,87.64,87.6,4.56565608]
[1773585595916,3.12125437,87.64,87.602,14.8406]
[1773585597618,3.12125437,87.64,87.603,4.56777385]
[1773585603614,3.12125437,87.67,87.611,4.56356934]
[1773585603818,3.12125437,87.66,87.611,4.56356934]
[1773585605121,3.12125437,87.67,87.611,4.56356934]
[1773585605519,13.38525437,87.67,87.615,4.5751769]
[1773585607621,13.38525437,87.67,87.618,4.57747681]
[1773585613314,13.38525437,87.67,87.623,4.57398968]
[1773585617024,10.263,87.679,87.625,4.56367862]
[1773585617827,3.12125437,87.67,87.625,4.56367862]
[1773585618523,3.12125437,87.67,87.627,14.80685823]
[1773585619328,3.12125437,87.66,87.619,10.27]
[1773585620226,3.12125437,87.66,87.619,14.74569097]
[1773585620628,3.12125437,87.66,87.62,4.48015299]
[1773585626032,10.264,87.669,87.62,4.48015299]
[1773585629837,3.12331504,87.66,87.62,4.48015299]
[1773585636244,10.265,87.662,87.62,4.48015299]
[1773585636439,3.12331504,87.66,87.62,4.48015299]
[1773585637041,10.265,87.662,87.62,4.48015299]
[1773585639144,10.266,87.654,87.61,4.5058172]
[1773585639541,3.12331504,87.65,87.61,4.5058172]
[1773585645144,49.8708505,87.688,87.588,57.14930062]
[1773585645145,3.12331504,87.64,87.6,4.53856813]
[1773585645545,10.66659965,87.665,87.602,4.53848772]
[1773585645546,8.63107462,87.664,87.602,4.53848772]
[1773585645747,8.63107462,87.663,87.602,4.53848772]
[1773585645947,8.68191121,87.662,87.602,4.53848772]
[1773585646153,8.68191121,87.661,87.611,4.53848772]
[1773585646347,8.68191121,87.66,87.611,4.53848772]
[1773585646547,8.68191121,87.659,87.613,4.53524288]
[1773585646749,8.68191121,87.658,87.613,4.53524288]
[1773585646949,8.68191121,87.659,87.613,4.53524288]
[1773585647149,8.68191121,87.658,87.613,4.53524288]
[1773585647353,8.68191121,87.657,87.613,4.53524288]
[1773585647553,8.68191121,87.659,87.613,4.53524288]
[1773585647852,8.68191121,87.658,87.613,4.53524288]
[1773585648057,8.68191121,87.657,87.613,4.53524288]
[1773585648354,8.68191121,87.656,87.613,4.53524288]
[1773585648650,8.68191121,87.659,87.613,4.53524288]
[1773585648857,8.68191121,87.658,87.613,4.53524288]
[1773585649053,8.68191121,87.657,87.613,4.53524288]
[1773585649254,8.68191121,87.659,87.616,4.39325783]
[1773585649555,8.68191121,87.669,87.621,4.39325783]
[1773585649754,8.68191121,87.668,87.621,4.39325783]
[1773585649955,8.68191121,87.667,87.621,4.39325783]
[1773585650155,8.68191121,87.666,87.621,4.39325783]
[1773585650455,8.68191121,87.665,87.621,4.39325783]
[1773585650655,8.68191121,87.664,87.621,4.39325783]
[1773585650955,8.68191121,87.663,87.621,4.39325783]
[1773585651145,8.68191121,87.662,87.621,4.39325783]
[1773585651345,10.264,87.668,87.621,4.39325783]
[1773585651545,8.68191121,87.667,87.621,4.39325783]
[1773585651750,8.68191121,87.666,87.621,4.39325783]
[1773585651948,8.68191121,87.665,87.621,4.39325783]
[1773585652150,8.68191121,87.667,87.621,4.39325783]
[1773585652353,8.68191121,87.666,87.621,4.39325783]
[1773585652557,8.68191121,87.665,87.621,4.39325783]
[1773585652752,8.68191121,87.667,87.621,4.39325783]
[1773585652953,8.68191121,87.666,87.621,4.39325783]
[1773585653153,8.68191121,87.665,87.621,4.39325783]
[1773585653353,8.68191121,87.667,87.621,4.39325783]
[1773585653554,8.68191121,87.666,87.621,4.39325783]
[1773585653857,10.264,87.668,87.621,4.39325783]
[1773585653858,8.68191121,87.665,87.621,4.39325783]
[1773585654067,8.68191121,87.664,87.621,4.39325783]
[1773585654357,8.68191121,87.667,87.621,4.39325783]
[1773585654559,8.68191121,87.666,87.621,4.39325783]
[1773585654759,8.68191121,87.665,87.621,4.39325783]
[1773585655057,8.68191121,87.664,87.621,4.39325783]
[1773585655257,8.68191121,87.667,87.621,4.39325783]
[1773585655458,8.68191121,87.666,87.621,4.39325783]
[1773585655659,8.68191121,87.665,87.621,4.39325783]
[1773585655859,8.68191121,87.664,87.621,4.39325783]
[1773585656051,8.68191121,87.667,87.621,4.39325783]
[1773585656252,8.68191121,87.666,87.621,4.39325783]
[1773585656457,8.68191121,87.665,87.621,4.39325783]
[1773585656760,8.68191121,87.664,87.621,4.39325783]
[1773585656954,8.68191121,87.667,87.621,4.39325783]
[1773585657154,8.68191121,87.666,87.63,3.12331504]
[1773585657354,8.68191121,87.675,87.631,4.40130305]
[1773585657555,8.68191121,87.674,87.633,4.4011384]
[1773585657862,8.68191121,87.687,87.651,4.4011384]
[1773585658056,8.68191121,87.707,87.651,4.4011384]
[1773585658258,8.68191121,87.706,87.651,4.4011384]
[1773585658460,8.68191121,87.705,87.651,4.4011384]
[1773585658664,13.78103799,87.71,87.651,4.4011384]
[1773585658665,10.261,87.693,87.651,4.4011384]
[1773585658858,8.68191121,87.703,87.661,4.39970114]
[1773585659163,8.68191121,87.711,87.661,4.39970114]
[1773585659762,35.92,87.712,87.661,4.39970114]
[1773585660561,46.179,87.712,87.664,4.42295819]
[1773585660763,3.12331504,87.73,87.671,4.42295819]
[1773585660961,44.60114525,87.729,87.671,4.42295819]
[1773585661264,8.68114525,87.728,87.671,4.42295819]
[1773585661459,44.60114525,87.729,87.671,4.42295819]
[1773585661665,10.258,87.721,87.671,4.42295819]
[1773585662256,3.12331504,87.72,87.671,4.42295819]
[1773585662961,10.258,87.719,87.671,4.42295819]
[1773585670063,3.12331504,87.7,87.654,4.40582691]
[1773585672070,10.259,87.708,87.654,4.40582691]
[1773585672763,10.259,87.708,87.656,4.38693375]
[1773585673562,3.12331504,87.7,87.656,4.38693375]
[1773585674567,35.92,87.729,87.673,4.38379809]
[1773585674877,3.12331504,87.71,87.673,4.38379809]
[1773585676665,35.92,87.729,87.675,4.39001449]
[1773585676874,3.12331504,87.73,87.675,4.39001449]
[1773585677667,13.38031504,87.73,87.676,4.39009046]
[1773585681371,3.12331504,87.72,87.676,4.39009046]
[1773585682276,3.12331504,87.73,87.676,4.39009046]
[1773585683577,3.12331504,87.73,87.678,4.38676525]
[1773585685678,10.257,87.727,87.678,4.38676525]
[1773585689870,10.256,87.737,87.682,4.38763676]
[1773585690074,3.12331504,87.73,87.682,4.38763676]
[1773585690876,3.11893379,87.73,87.682,4.38763676]
[1773585691669,13.37593379,87.73,87.682,4.38763676]
[1773585692283,10.258,87.72,87.682,4.38763676]
[1773585692878,10.257,87.728,87.682,4.38763676]
[1773585699192,13.37693379,87.72,87.669,4.38828653]
[1773585699582,10.258,87.72,87.673,10.263]
[1773585699786,10.258,87.72,87.643,35.9]
[1773585699787,3.11893379,87.72,87.674,4.38800691]
[1773585700092,10.257,87.729,87.674,4.38800691]
[1773585700490,10.257,87.729,87.676,10.263]
[1773585700684,10.257,87.729,87.677,4.38224902]
[1773585701897,10.257,87.729,87.681,4.3798443]
[1773585706691,3.11893379,87.72,87.681,4.3798443]
[1773585707196,3.11893379,87.73,87.681,4.3798443]
[1773585708492,10.257,87.725,87.681,4.3798443]
[1773585716802,10.257,87.727,87.684,10.262]
[1773585716995,10.257,87.727,87.684,14.66717485]
[1773585717501,10.257,87.727,87.67,3.11893379]
[1773585717502,8.67842443,87.727,87.685,4.40510847]
[1773585717701,8.67842443,87.728,87.685,4.40510847]
[1773585717902,8.67842443,87.727,87.685,4.40510847]
[1773585718103,8.67842443,87.728,87.685,4.40510847]
[1773585718405,8.67842443,87.727,87.685,4.40510847]
[1773585718701,8.67842443,87.726,87.685,4.40510847]
[1773585718901,8.67842443,87.725,87.685,4.40510847]
[1773585719097,8.67842443,87.728,87.685,4.40510847]
[1773585719296,10.257,87.725,87.685,4.40510847]
[1773585719497,8.67842443,87.724,87.685,4.40510847]
[1773585719694,10.257,87.725,87.685,4.40510847]
[1773585719902,8.69277752,87.724,87.685,4.40510847]
[1773585720103,10.257,87.725,87.685,4.40510847]
[1773585720303,8.69277752,87.724,87.685,4.40510847]
[1773585720505,10.257,87.725,87.685,4.40510847]
[1773585720695,8.6947545,87.724,87.685,4.40510847]
[1773585720896,8.69511296,87.732,87.686,4.42690454]
[1773585721099,10.256,87.733,87.686,4.42690454]
[1773585721301,8.69695295,87.732,87.686,4.42690454]
[1773585721605,10.256,87.733,87.686,4.42690454]
[1773585721806,8.69695295,87.732,87.686,4.42690454]
[1773585722007,10.256,87.733,87.686,4.42690454]
[1773585722306,8.69695295,87.732,87.686,4.42690454]
[1773585722496,10.256,87.733,87.688,4.44693574]
[1773585723506,10.256,87.733,87.692,4.44151206]
[1773585725008,39.01893379,87.74,87.694,4.43645211]
[1773585725203,8.69333894,87.739,87.694,4.43645211]
[1773585725410,8.69333894,87.738,87.694,4.43645211]
[1773585725610,8.69333894,87.737,87.694,4.43645211]
[1773585725800,8.69333894,87.736,87.694,4.43645211]
[1773585726006,8.69333894,87.735,87.694,4.43645211]
[1773585726312,39.01893379,87.74,87.694,4.43645211]
[1773585726512,18.94768146,87.739,87.694,4.43645211]
[1773585726712,8.69168146,87.738,87.694,4.43645211]
[1773585727012,8.69168146,87.737,87.694,4.43645211]
[1773585727210,8.69168146,87.736,87.697,4.43652655]
[1773585727409,8.69168146,87.735,87.697,4.43652655]
[1773585727609,8.69168146,87.738,87.697,4.43652655]
[1773585727810,8.69168146,87.737,87.697,4.43652655]
[1773585728009,8.69168146,87.736,87.697,4.43652655]
[1773585728213,10.256,87.739,87.697,4.43652655]
[1773585728511,8.6902543,87.738,87.697,4.43652655]
[1773585728710,8.6902543,87.737,87.697,4.43652655]
[1773585728908,8.6902543,87.736,87.697,4.43652655]
[1773585729112,8.68977825,87.738,87.697,4.43652655]
[1773585729308,8.68977825,87.737,87.697,4.43652655]
[1773585729507,10.256,87.739,87.697,4.43652655]
[1773585729508,8.68977825,87.736,87.697,4.43652655]
[1773585729807,8.68977825,87.738,87.697,4.43652655]
[1773585730008,8.68977825,87.737,87.697,4.43652655]
[1773585730208,8.68977825,87.736,87.697,4.43652655]
[1773585730409,3.11893379,87.73,87.697,4.43652655]
[1773585730611,3.11893379,87.73,87.688,4.42728318]
[1773585731011,13.37593379,87.73,87.688,4.42728318]
[1773585734518,3.11893379,87.73,87.688,4.42728318]
[1773585735819,8.98062289,87.764,87.721,10.258]
[1773585736020,3.11893379,87.78,87.72,3.11893379]
[1773585736021,35.9,87.769,87.72,3.11893379]
[1773585737220,35.9,87.769,87.732,10.256]
[1773585738809,8.95848689,87.768,87.732,10.256]
[1773585742221,35.9,87.769,87.732,10.256]
[1773585742721,1.98307548,87.815,87.685,35.9]
[1773585742722,35.9,87.797,87.75,3.11893379]
[1773585742918,8.97638661,87.796,87.75,3.11893379]
[1773585743222,8.97638661,87.796,87.74,3.11893379]
[1773585744619,8.97638661,87.796,87.746,10.255]
[1773585744821,8.97638661,87.796,87.75,3.11893379]
[1773585746921,8.97638661,87.796,87.746,10.255]
[1773585747317,8.97638661,87.796,87.756,10.254]
[1773585747716,8.97638661,87.796,87.74,3.11893379]
[1773585748124,8.97638661,87.796,87.742,10.255]
[1773585748723,8.97638661,87.796,87.751,10.254]
[1773585754231,8.95338184,87.789,87.751,10.254]
[1773585765339,8.95338184,87.789,87.741,10.255]
[1773585767646,8.95338184,87.789,87.748,10.255]
[1773585778057,8.82135009,87.779,87.74,10.256]
[1773585779154,8.82135009,87.779,87.732,10.256]
[1773585779349,3.11352665,87.76,87.732,10.256]
[1773585779556,8.82378762,87.759,87.732,10.256]
[1773585782357,8.82842022,87.769,87.732,10.256]
[1773585782556,35.88,87.77,87.739,10.256]
[1773585782752,8.77406062,87.781,87.74,3.11352665]
[1773585783549,8.77406062,87.781,87.749,10.254]
[1773585783859,8.77406062,87.781,87.74,3.11352665]
[1773585784261,8.77435554,87.792,87.74,3.11352665]
[1773585784558,8.77435554,87.792,87.757,10.254]
[1773585787761,8.76850318,87.829,87.78,3.11352665]
[1773585788467,8.76850318,87.829,87.77,3.11352665]
[1773585789569,8.76850318,87.829,87.791,10.25]
[1773585790266,3.11352665,87.82,87.78,10.251]
[1773585790469,8.77476812,87.819,87.76,3.11352665]
[1773585791064,8.77476812,87.819,87.77,3.11352665]
[1773585791271,8.77476812,87.819,87.785,10.25]
[1773585794773,11.8794565,87.83,87.794,10.249]
[1773585794971,8.76592985,87.849,87.8,3.11352665]
[1773585796373,8.76592985,87.849,87.813,10.247]
[1773585796575,8.76592985,87.849,87.8,3.11352665]
[1773585796878,8.76592985,87.849,87.79,3.11352665]
[1773585797078,8.76592985,87.849,87.802,10.248]
[1773585797278,8.76592985,87.849,87.8,3.11352665]
[1773585798575,8.76592985,87.849,87.812,10.247]
[1773585798976,10.65948739,87.896,87.81,3.11352665]
[1773585798977,8.77176414,87.868,87.81,3.11352665]
[1773585799573,8.77176414,87.868,87.8,3.11352665]
[1773585799973,3.11352665,87.85,87.8,3.11352665]
[1773585800277,8.77824436,87.849,87.8,3.11352665]
[1773585801782,8.77824436,87.849,87.808,10.248]
[1773585802870,8.77824436,87.849,87.803,10.248]
[1773585805782,8.77474798,87.839,87.803,10.248]
[1773585815587,3.11026075,87.85,87.803,10.248]
[1773585815790,11.85116066,87.85,87.803,10.248]
[1773585816191,8.74089991,87.849,87.803,10.248]
[1773585825500,8.74139176,87.839,87.795,10.249]
[1773585825993,3.11026075,87.84,87.766,35.86]
[1773585825994,8.74139176,87.829,87.787,10.25]
[1773585833403,3.11026075,87.82,87.778,10.251]
[1773585833700,3.11026075,87.82,87.76,3.11026075]
[1773585833701,8.74085159,87.819,87.76,3.11026075]
[1773585834097,8.74085159,87.853,87.767,21.20024769]
[1773585834302,8.74085159,87.853,87.758,20.507]
[1773585834303,8.74085159,87.853,87.8,3.11026075]
[1773585835495,8.74085159,87.853,87.806,10.248]
[1773585840008,8.74085159,87.853,87.81,3.11026075]
[1773585841010,8.74085159,87.853,87.806,10.248]
[1773585842510,8.69847432,87.852,87.798,10.249]
[1773585842709,8.69847432,87.849,87.798,10.249]
[1773585845211,3.11026075,87.85,87.798,10.249]
[1773585845212,8.70561126,87.839,87.798,10.249]
[1773585851912,8.70561126,87.839,87.79,3.11026075]
[1773585852106,8.70561126,87.839,87.789,10.25]
[1773585853012,8.70561126,87.839,87.79,3.11026075]
[1773585854615,8.70561126,87.839,87.799,10.249]
[1773585860525,8.70561126,87.839,87.806,10.248]
[1773585871323,8.70561126,87.839,87.797,10.249]
[1773585874132,8.70561126,87.839,87.806,10.248]
[1773585875134,8.70561126,87.839,87.8,3.11025783]
[1773585875528,8.70561126,87.839,87.79,3.11025783]
[1773585875726,8.70561126,87.839,87.792,10.249]
[1773585876536,8.70561126,87.839,87.79,3.11025783]
[1773585876537,8.70561126,87.839,87.8,10.249]
[1773585876838,10.242,87.853,87.767,35.86]
[1773585876839,38.79541407,87.919,87.83,3.11025783]
[1773585877038,38.79541407,87.919,87.858,10.242]
[1773585877245,3.11025783,87.89,87.83,3.11025783]
[1773585877638,3.11025783,87.89,87.841,10.244]
[1773585877936,10.233,87.934,87.853,10.6087874]
[1773585878138,3.11025783,87.9,87.854,10.66853686]
[1773585878333,3.11025783,87.89,87.855,20.91053686]
[1773585878534,3.11025783,87.89,87.856,10.66853686]